{"text_format":"1","workbook":"xlsx","n_sheets":1,"sheets":["СОМ (2)"],"not_rendered":{"charts":1,"images":0,"macros":1,"external_links":1,"defined_names":1,"comments":0,"pivot_tables":0},"unopened":[],"bounds":{"document_bytes":16777216,"sheet_cells":100000,"rows_first":2000,"rows_last":500,"rows_between":2000,"halvings":0,"cell_chars":16384,"cell_head_chars":4096},"cells_cut":0,"cells_raw":0,"read":"whole","date_system":"1900"}

{"sheet":"СОМ (2)","index":0,"n_rows":14,"n_cols":15,"rows_kept":14,"cut":false,"hidden":false,"merged":[]}
[]
[null,"Месяц","сен","окт","ноя","дек","янв","фев","мар","апр","май","Итог за год",null,null,"мар"]
[null,"Первичное обследование",2,2,2,2,2,2,2,2,2,10,null,{"$f":"OFFSET($B$3:$B$14,,MATCH(O2,'СОМ (2)'!$C$2:$L$2,0),)","v":2}]
[null,"Вторичное обследовние",3,3,3,2,3,3,3,3,3,{"$f":"SUM(Таблица18[[#This Row],[сен]:[май]])","v":26},null,3]
[null,"Групповая диагностика",3,3,3,2,3,3,3,3,3,{"$f":"SUM(Таблица18[[#This Row],[сен]:[май]])","v":26},null,3]
[null,"Индивидуальное занятие",3,3,3,2,3,3,3,3,3,{"$f":"SUM(Таблица18[[#This Row],[сен]:[май]])","v":26},null,3]
[null,"Групповая КРР\n/ (тренинг)",4,4,4,2,4,3,4,4,4,{"$f":"SUM(Таблица18[[#This Row],[сен]:[май]])","v":33},null,4]
[null,"Индивидуальная консультация",5,5,5,2,5,3,5,5,5,{"$f":"SUM(Таблица18[[#This Row],[сен]:[май]])","v":40},null,5]
[null,"Консультация для родителей\n(собрание)",7,7,7,2,7,3,7,5,7,{"$f":"SUM(Таблица18[[#This Row],[сен]:[май]])","v":52},null,7]
[null,"Консультация для специалистов",9,9,9,2,9,3,9,5,9,{"$f":"SUM(Таблица18[[#This Row],[сен]:[май]])","v":64},null,9]
[null,"Участие\\проведение консилиума",14,14,14,2,14,3,14,5,9,{"$f":"SUM(Таблица18[[#This Row],[сен]:[май]])","v":89},null,14]
[null,"Проведение\\посещение занятий",1,12,12,2,12,3,12,5,9,{"$f":"SUM(Таблица18[[#This Row],[сен]:[май]])","v":68},null,12]
[null,"Организационно-методическая работа (в т.ч. разработка пособий, игр, консультаций)",15,15,15,2,15,3,15,5,9,{"$f":"SUM(Таблица18[[#This Row],[сен]:[май]])","v":94},null,15]
[null,"Итого",{"$f":"SUM(C3:C13)","v":66},{"$f":"SUM(D3:D13)","v":77},77,2,77,32,77,45,63,{"$f":"SUM(Таблица18[[#This Row],[сен]:[май]])","v":516},null,77]